{"text_format":"1","workbook":"xlsx","n_sheets":5,"sheets":["Instructions","Section A1","Section A2","Section B","SoC"],"not_rendered":{"charts":0,"images":1,"macros":1,"external_links":1,"defined_names":6,"comments":5,"pivot_tables":0},"unopened":[],"bounds":{"document_bytes":16777216,"sheet_cells":100000,"rows_first":2000,"rows_last":500,"rows_between":2000,"halvings":0,"cell_chars":16384,"cell_head_chars":4096},"cells_cut":0,"cells_raw":0,"read":"whole","date_system":"1900"}

{"sheet":"Instructions","index":0,"n_rows":26,"n_cols":3,"rows_kept":26,"cut":false,"hidden":false,"merged":[[0,0,0,2]]}
["TECHNOLOGY INNOVATION AND EMISSIONS REDUCTION REGULATION FORECASTING FORM"]
["Introduction",null,"v3.0"]
[]
[null,"This form is intended for large emitters required to submit annual forecasting reports under the Technology Innovation and Emissions Reduction (TIER) Regulation. Please refer to Section 16 of the TIER Regulation and the Standard for Completing Greenhouse Gas Compliance and Forecasting Reports for more information regarding reporting requirements and completion of this form. "]
["SGER Consolidated Form v3.0 (2012)"]
["Legal Authority"]
[]
[null,"The requirements described below are administered under the authority of the Emissions Management and Climate Resilience Act and the Technology Innovation and Emissions Reduction Regulation."]
[]
["Completion Instructions"]
[]
["1.","Enable Content and use the tabs below to navigate through the sections of this form."]
["2.","More information about certain fields can be found in the form of pop-up comments. To view comments, hover the cursor over each cell with a comment or select the appropriate option in the menus to display all comments."]
["3.","Complete all applicable sections of this form. Questions can be submitted to EPA.GHG@gov.ab.ca"]
["4.","For items that are not applicable, check off the associated N/A checkbox or enter 'N/A' in the field itself if a checkbox is not available."]
["5.","Review and check all calculations and entered values for errors."]
["6.","To print the report or portions thereof, first select multiple tabs by navigating to the first tab to be printed and shift+clicking the last tab. Next, select \"Print\" from the \"File\" menu above. Caution: When multiple tabs are selected, making a change to one tab can affect information in all selected tabs. "]
["7.","Have the Certifying Official, the designated representative for the Person Responsible for the facility, electronically sign the Statement of Certification."]
["8.","Submit the electronically signed forecasting form to the director at EPA.GHG@gov.ab.ca. Note that hard copies will not be accepted. "]
[]
[]
[]
["Submission Address"]
[]
[null,"Completed reports are submitted electronically to:"]
[null,"EPA.GHG@gov.ab.ca"]

{"sheet":"Section A1","index":1,"n_rows":30,"n_cols":4,"rows_kept":30,"cut":false,"hidden":false,"merged":[[22,1,22,3],[28,1,28,3],[30,1,34,3],[0,0,0,4],[6,1,6,3],[8,1,8,3],[16,1,16,3],[18,1,18,3],[20,1,20,3]]}
["Section A: Administrative Information"]
[]
[null,"Facility Information"]
["Facility Name",null,"Facility ID"]
[]
["Environmental Protection and Enhancement Act (EPEA) Approval/Registration Number(s) (list all that apply to this facility)"]
[]
["Alberta Energy Regulator (AER) License/Registration Number(s) (list all that apply to this facility)"]
[]
["National Pollutant Release Inventory (NPRI) ID(s)"]
[]
["NAICS Code 2017 Version 2.0",null,"SWIM GHGRP ID"]
[]
["Facility Geographical Latitude (in NAD 83)",null,"Facility Geographical Longitude (in NAD 83)"]
[]
["Facility Location (street or rural address of actual facility, if applicable, NOT the mailing address)"]
[]
["Nearest City/District/Municipality/County to Facility"]
[]
["Facility Mailing Address"]
[]
["Mailing Address City/District/Municipality/County"]
[]
["Province/Territory",null,"Postal Code"]
[]
["First Year of Commercial Operation",null,"Years of Commercial Operation for Compliance Period"]
[null,null,null,{"$f":"[1]Submission!C6-B27+1","v":2024}]
["Petrinex ID(s) (only for Oil and Gas facilities) (ex ABBT0000000, ABBT0000001)"]
[]
["Describe the criteria used to determine the first year of commercial operation for this facility:"]

{"sheet":"Section A2","index":2,"n_rows":56,"n_cols":8,"rows_kept":56,"cut":false,"hidden":false,"merged":[[0,0,0,4],[4,1,4,3],[6,1,6,3]]}
["Section A: Administrative Information (continued)",null,null,null,null,null,"hide","hide"]
[]
[null,"Reporting Company (Person Responsible)"]
["Reporting Company Legal Name"]
[]
["Reporting Company Trade Name"]
[]
["Reporting Company Business Number"]
[]
["Reporting Company Mailing Address",null,"Mailing Address City/District/Municipality/County"]
[]
["Province",null,"Postal Code"]
[]
[]
[null,"Reporter"]
["Title",null,null,null,null,null,"Mr."]
[null,null,null,null,null,null,"Ms."]
["First Name",null,"Last Name",null,null,null,"Mrs."]
[null,null,null,null,null,null,"Miss"]
["Position/Title",null,"E-mail Address",null,null,null,"Dr."]
[]
["Telephone Number (eg. 780-123-4567 ext 8)"]
[]
["Mailing Address",null,"City/District/Municipality/County",null,null,null,null,false]
[]
["Province",null,"Postal Code"]
[]
[]
[null,"Certifying Official"]
["Title"]
[]
["First Name",null,"Last Name"]
[]
["Position/Title",null,"E-mail Address"]
[]
["Telephone Number (eg. 780-123-4567 ext 8)"]
[]
["Mailing Address",null,"City/District/Municipality/County",null,null,null,null,false]
[]
["Province",null,"Postal Code"]
[]
[]
[null,"Public Contact"]
[null,null,"(if applicable)",null,null,null,"Same as Reporter",false]
[null,"Note: Only complete below if not the same as the Reporter or the Certifying Official.",null,null,null,null,"Same as Official",false]
["Title",null,null,null,null,null,"Mr."]
[null,null,null,null,null,null,"Ms."]
["First Name",null,"Last Name"]
[]
["Position/Title",null,"E-mail Address"]
[]
["Telephone Number (eg. 780-123-4567 ext 8)"]
[]
["Mailing Address",null,"City/District/Municipality/County"]
[]
["Province",null,"Postal Code"]

{"sheet":"Section B","index":3,"n_rows":92,"n_cols":33,"rows_kept":92,"cut":false,"hidden":false,"merged":[[0,0,0,13],[57,1,57,12],[30,8,30,9],[28,8,28,9],[86,16,86,23],[85,16,85,23],[84,16,84,23],[35,8,36,8],[35,10,36,10],[35,12,36,12],[83,16,83,23],[12,12,14,12]]}
[{"$f":"\"Section B: Emissions, Production and Compliance Mechanism Forecast\"","v":"Section B: Emissions, Production and Compliance Mechanism Forecast"},null,null,null,null,null,null,null,null,null,null,null,null,null,null,"hide","hide","hide","hide","hide","hide","hide","hide","hide","hide","hide","hide","hide","hide","hide","hide","hide","hide"]
[]
[null,"Report Period"]
[]
[null,"Year",null,null,null,null,null,null,null,null,null,null,null,null,null,null,null,"Item number","Value"]
[]
[]
[null,{"$f":"QYear &  \" Forecast Information\"","v":"2025 Forecast Information"},null,null,null,null,null,null,null,null,null,null,null,null,null,"Year selected:",null,3,{"$f":"INDEX(AE66:AE73,R8)","v":2025}]
[null,null,null,null,null,"Annual Reporting",null,null,null,null,null,null,null,null,null,"Minimum TIER fund contribution",null,{"$f":"VLOOKUP(P25,AE66:AF73,2,FALSE)","v":20}]
[null,null,null,null,null,"Jan 01 to Dec 31"]
[{"$f":"\"Total Regulated Emissions (TRE)\"","v":"Total Regulated Emissions (TRE)"},null,null,null,null,null,null,null,"Tonnes CO2e",null,null,null,"TRE = DE – ICO2 + ECO2 + UCO2 – CRT",null,null,"AB-CWB",null,{"$f":"IF(OR(AA81=\"\",AA82=\"\"),TRUE,FALSE)","v":false}]
[]
[null,"Imported Electricity",null,null,null,null,null,null,"MWh",null,null,null,"Report TRE using IPCC 2013 global warming potentials",null,null,"Electricity benchmark for the current year:",null,{"$f":"VLOOKUP(\"Electricity\",$Q$65:$Y$83,$W$60+1,FALSE)","v":0.3478}]
[]
[null,"Imported Heat",null,null,null,null,null,null,"GJ",null,null,null,null,null,null,"Heat",null,{"$f":"VLOOKUP(\"Industrial Heat\",$Q$65:$Y$83,$W$60+1,FALSE)","v":5.9209999999999999E-2}]
[]
[null,{"$f":"IF(R11,\"Imported Hydrogen for stationary fuel combustion\",\"Imported Hydrogen\")","v":"Imported Hydrogen"},null,null,null,null,null,null,"Tonnes",null,null,null,null,null,null,"Hydrogen",null,{"$f":"VLOOKUP(\"Hydrogen\",$Q$65:$Y$83,$W$60+1,FALSE)","v":8.8439999999999994}]
[]
[null,{"$f":"QYear  & \" True-up Obligation (or Potential EPCs)\"","v":"2025 True-up Obligation (or Potential EPCs)"}]
[]
[null,"Allowable Emissions",null,null,null,{"$f":"IFERROR(SUMPRODUCT((F$38:F$56),($U$38:$U$56))-$R$13*F$13-$R$15*F$15-$R$17*F$17,\"Check the information\")","v":0},null,null,"Tonnes CO2e"]
[]
[null,{"$f":"\"Projected \" & QYear &\" True-up Obligations\"","v":"Projected 2025 True-up Obligations"},null,null,null,{"$f":"IFERROR(F$11-F$21,\"Check the information\")","v":0},null,null,"Credits"]
[]
[null,{"$f":"QYear & \" Expected Share of Compliance Mechanism\"","v":"2025 Expected Share of Compliance Mechanism"},null,null,null,null,null,null,null,null,null,null,null,null,null,{"$f":"QYear","v":2025}]
[]
[null,"Projected Contribution:",null,null,null,"Annual Reporting",null,null,"Total"]
[]
[null," - to the Technology Innovation and Emissions Reduction Fund",null,null,null,null,"%",null,{"$f":"IFERROR(IF(F23>0,ROUND($F$29*F23/100,0),0),\"Check the information\")","v":0},null,"Credits",null,{"$f":"CONCATENATE(P9,\" is \",R9,\"%\")","v":"Minimum TIER fund contribution is 20%"}]
[]
[null," - through EO and/or EPC and/or SC",null,null,null,{"$f":"IF(F23>0,IF(F29=0,\"\",(1-F29/100)*100),\"\")","v":""},"%",null,{"$f":"IFERROR(IF(F23>0,F23-I29,0),\"Check the information\")","v":0},null,"Credits"]
[]
[null,{"$f":"QYear &\" TIER Production Estimation Information\"","v":"2025 TIER Production Estimation Information"}]
[]
[]
[null,null,null,null,null,"Annual Reporting",null,null,"High Performance Benchmark",null,"Facility Specific Benchmark",null,"Units"]
[null,null,null,"Product",null,"Quantity",null,null,null,null,null,null,null,null,null,{"$f":"\"Benchmark values for year \"&QYear","v":"Benchmark values for year 2025"},null,null,null,null,"TIER: MAX(HPB,FSB)"]
[null,"Production Item 1",null,null,null,null,null,null,{"$f":"Q38","v":0},null,null,null,{"$f":"R38","v":"N/A"},null,null,null,{"$f":"IFERROR(VLOOKUP($D38,$Q$65:$Y$83,$W$60+1, FALSE),0)","v":0},{"$f":"IFERROR(VLOOKUP($D38,$Q$65:$Z$83,10, FALSE),\"N/A\")","v":"N/A"},null,null,{"$f":"MAX(I38,K38)","v":0}]
[]
[null,"Production Item 2",null,null,null,null,null,null,{"$f":"Q40","v":0},null,null,null,{"$f":"R40","v":"N/A"},null,null,null,{"$f":"IFERROR(VLOOKUP($D40,$Q$65:$Y$83,$W$60+1, FALSE),0)","v":0},{"$f":"IFERROR(VLOOKUP($D40,$Q$65:$Z$83,10, FALSE),\"N/A\")","v":"N/A"},null,null,{"$f":"MAX(I40,K40)","v":0}]
[]
[null,"Production Item 3",null,null,null,null,null,null,{"$f":"Q42","v":0},null,null,null,{"$f":"R42","v":"N/A"},null,null,null,0,"N/A",null,null,{"$f":"MAX(I42,K42)","v":0}]
[]
[null,"Production Item 4",null,null,null,null,null,null,{"$f":"Q44","v":0},null,null,null,{"$f":"R44","v":"N/A"},null,null,null,0,"N/A",null,null,{"$f":"MAX(I44,K44)","v":0}]
[]
[null,"Production Item 5",null,null,null,null,null,null,{"$f":"Q46","v":0},null,null,null,{"$f":"R46","v":"N/A"},null,null,null,0,"N/A",null,null,{"$f":"MAX(I46,K46)","v":0}]
[]
[null,"Production Item 6",null,null,null,null,null,null,{"$f":"Q48","v":0},null,null,null,{"$f":"R48","v":"N/A"},null,null,null,0,"N/A",null,null,{"$f":"MAX(I48,K48)","v":0}]
[]
[null,"Production Item 7",null,null,null,null,null,null,{"$f":"Q50","v":0},null,null,null,{"$f":"R50","v":"N/A"},null,null,null,0,"N/A",null,null,{"$f":"MAX(I50,K50)","v":0}]
[]
[null,"Production Item 8",null,null,null,null,null,null,{"$f":"Q52","v":0},null,null,null,{"$f":"R52","v":"N/A"},null,null,null,0,"N/A",null,null,{"$f":"MAX(I52,K52)","v":0}]
[]
[null,"Production Item 9",null,null,null,null,null,null,{"$f":"Q54","v":0},null,null,null,{"$f":"R54","v":"N/A"},null,null,null,0,"N/A",null,null,{"$f":"MAX(I54,K54)","v":0}]
[]
[null,"Production Item 10",null,null,null,null,null,null,{"$f":"Q56","v":0},null,null,null,{"$f":"R56","v":"N/A"},null,null,null,0,"N/A",null,null,{"$f":"MAX(I56,K56)","v":0}]
[]
[null,{"$f":"IFERROR(LEFT(QYear & \" - \" & facility,95),\"Check the information\")","v":"2025 - "}]
[]
[null,null,null,null,null,null,null,null,null,null,null,null,null,null,null,null,{"$f":"\"Column to use for the current year \" &QYear&\" is:\"","v":"Column to use for the current year 2025 is:"},null,null,null,{"$f":"MATCH(QYear,A62:W62)","v":23},{"$f":"SUBSTITUTE(ADDRESS(1,U60,3),\"1\",\"\")","v":"$W"},{"$f":"MATCH(QYear,R63:Y63)","v":3}]
[]
[null,null,null,null,null,null,null,null,null,null,null,null,null,null,null,null,"Table   Established Benchmarks for Products",{"$f":"COLUMN()","v":18},{"$f":"COLUMN()","v":19},{"$f":"COLUMN()","v":20},{"$f":"COLUMN()","v":21},{"$f":"COLUMN()","v":22},{"$f":"COLUMN()","v":23},{"$f":"COLUMN()","v":24},{"$f":"COLUMN()","v":25}]
[null,null,null,null,null,null,null,null,null,null,null,null,null,null,null,null,null,2023,2024,2025,2026,2027,2028,2029,2030,"unit"]
[null,null,null,null,null,null,null,null,null,null,null,null,null,null,null,null,"Product","High performance benchmark for 2023 (tonnes of CO2e per  benchmark unit)","High performance benchmark for 2024 (tonnes of CO2e per  benchmark unit)","High performance benchmark for 2025 (tonnes of CO2e per  benchmark unit)","High performance benchmark for 2026 (tonnes of CO2e per  benchmark unit)","High performance benchmark for 2027 (tonnes of CO2e per  benchmark unit)","High performance benchmark for 2028 (tonnes of CO2e per  benchmark unit)","High performance benchmark for 2029 (tonnes of CO2e per  benchmark unit)","High performance benchmark for 2030 (tonnes of CO2e per  benchmark unit)","Benchmark unit","Name used?","List of unused names",null,null,"Year","Fund ratio minimum %"]
[null,null,null,null,null,null,null,null,null,null,null,null,null,null,null,null,"Ammonia",1.758,1.746,1.7350000000000001,1.7230000000000001,1.7110000000000001,1.6990000000000001,1.6879999999999999,1.6759999999999999,"Tonne",{"$f":"IF(COUNTIF($D$38:$D$56,$Q65)>=1,\"\",ROW())","v":65},{"$f":"IF(ROW(Q65)-ROW(Q$65)+1>COUNT(AA$65:AA$83),\"\",\nINDEX(Q:Q,SMALL(AA$65:AA$83,1+ROW(Q65)-ROW(Q$65))))","v":"Ammonia"}]
[null,null,null,null,null,null,null,null,null,null,null,null,null,null,null,null,"Ammonium nitrate",0.14480000000000001,0.14280000000000001,0.14080000000000001,0.13880000000000001,0.1368,0.1348,0.1328,0.1308,"Tonne",66,"Ammonium nitrate",null,null,2023,40]
[null,null,null,null,null,null,null,null,null,null,null,null,null,null,null,null,"Bitumen - Oil Sands In Situ",0.29160000000000003,0.28560000000000002,0.2797,0.2737,0.26779999999999998,0.26179999999999998,0.25019999999999998,0.2387,"m3 of bitumen",67,"Bitumen - Oil Sands In Situ",null,null,2024,30]
[null,null,null,null,null,null,null,null,null,null,null,null,null,null,null,null,"Bitumen - Oil Sands Mining",0.1918,0.18770000000000001,0.1835,0.1794,0.17530000000000001,0.17119999999999999,0.16350000000000001,0.15590000000000001,"m3 of bitumen",68,"Bitumen - Oil Sands Mining",null,null,2025,20]
[null,null,null,null,null,null,null,null,null,null,null,null,null,null,null,null,"Pulp - Kraft",0.44829999999999998,0.43909999999999999,0.43,0.42080000000000001,0.41170000000000001,0.40250000000000002,0.39340000000000003,0.38419999999999999,"Air Dried Metric Tonnes of bleached kraft pulp (10% moisture by mass)",69,"Pulp - Kraft",null,null,2026,10]
[null,null,null,null,null,null,null,null,null,null,null,null,null,null,null,null,"Canola Oil - Crude",0.1118,0.1095,0.1072,0.10489999999999999,0.1026,0.1003,9.8070000000000004E-2,9.579E-2,"Tonne",70,"Canola Oil - Crude",null,null,2027,10]
[null,null,null,null,null,null,null,null,null,null,null,null,null,null,null,null,"Cement",0.77039999999999997,0.76490000000000002,0.75949999999999995,0.75409999999999999,0.74870000000000003,0.74319999999999997,0.73780000000000001,0.73240000000000005,"Tonne",71,"Cement",null,null,2028,10]
[null,null,null,null,null,null,null,null,null,null,null,null,null,null,null,null,"Coal - Bituminous",7.0830000000000004E-2,6.9379999999999997E-2,6.794E-2,6.6489999999999994E-2,6.5049999999999997E-2,6.3600000000000004E-2,6.216E-2,6.071E-2,"Tonne",72,"Coal - Bituminous",null,null,2029,10]
[null,null,null,null,null,null,null,null,null,null,null,null,null,null,null,null,"Coal - Sub-bituminous",1.223E-2,1.1979999999999999E-2,1.1730000000000001E-2,1.1480000000000001E-2,1.123E-2,1.098E-2,1.073E-2,1.048E-2,"Tonne",73,"Coal - Sub-bituminous",null,null,2030,10]
[null,null,null,null,null,null,null,null,null,null,null,null,null,null,null,null,"Electricity",0.36259999999999998,0.35520000000000002,0.3478,0.34039999999999998,0.33300000000000002,0.3256,0.31819999999999998,0.31080000000000002,"Megawatt hour",74,"Electricity"]
[null,null,null,null,null,null,null,null,null,null,null,null,null,null,null,null,"Ethyl alcohol",1.374E-3,1.346E-3,1.3179999999999999E-3,1.2899999999999999E-3,1.2620000000000001E-3,1.2340000000000001E-3,1.206E-3,1.178E-3,"Litres absolute alcohol",75,"Ethyl alcohol"]
[null,null,null,null,null,null,null,null,null,null,null,null,null,null,null,null,"Ethylene glycol",0.4975,0.49270000000000003,0.4879,0.48299999999999998,0.47820000000000001,0.47339999999999999,0.46860000000000002,0.46379999999999999,"Tonne",76,"Ethylene glycol"]
[null,null,null,null,null,null,null,null,null,null,null,null,null,null,null,null,"High‑value Chemicals",0.47220000000000001,0.46260000000000001,0.45290000000000002,0.44330000000000003,0.43369999999999997,0.42399999999999999,0.41439999999999999,0.40479999999999999,"Tonne",77,"High‑value Chemicals"]
[null,null,null,null,null,null,null,null,null,null,null,null,null,null,null,null,"Hydrogen",8.9930000000000003,8.9190000000000005,8.8439999999999994,8.7690000000000001,8.6940000000000008,8.6199999999999992,8.5449999999999999,8.4700000000000006,"Tonne",78,"Hydrogen"]
[null,null,null,null,null,null,null,null,null,null,null,null,null,null,null,null,"Industrial Heat",6.173E-2,6.0470000000000003E-2,5.9209999999999999E-2,5.7950000000000002E-2,5.6689999999999997E-2,5.543E-2,5.4170000000000003E-2,5.2909999999999999E-2,"Gigajoule",79,"Industrial Heat"]
[null,null,null,null,null,null,null,null,null,null,null,null,null,null,null,null,"Natural Gas Processing - ABGPI",0.65169999999999995,0.63839999999999997,0.62509999999999999,0.61180000000000001,0.59850000000000003,0.58520000000000005,0.57189999999999996,0.55859999999999999,"Tonne CO2e",80,"Natural Gas Processing - ABGPI"]
[null,null,null,null,null,null,null,null,null,null,null,null,null,null,null,null,"Refined Petroleum Products",2.0019999999999998,1.9610000000000001,1.92,1.879,1.8380000000000001,1.798,1.7569999999999999,1.716,"Alberta complexity weighted barrel (in thousands)",81,"Refined Petroleum Products"]
[null,null,null,null,null,null,null,null,null,null,null,null,null,null,null,null,"Upgrading",2.8159999999999998,2.7559999999999998,2.6970000000000001,2.637,2.577,2.5169999999999999,2.4180000000000001,2.319,"Upgrading AB-CWB (in thousands)",82,"Upgrading"]
[null,null,null,null,null,null,null,null,null,null,null,null,null,null,null,null,"Urea - Granular",0.24429999999999999,0.23930000000000001,0.23430000000000001,0.2293,0.2243,0.21929999999999999,0.21429999999999999,0.2094,"Tonne",83,"Urea - Granular"]
[null,null,null,null,null,null,null,null,null,null,null,null,null,null,null,null,"Note: "]
[]
[]
[]
[]
[]
[null,null,null,null,null,null,null,null,null,null,null,null,null,null,null,null,"Refining Count",{"$f":"R91+R92","v":{"$error":"#REF!"}}]
[null,null,null,null,null,null,null,null,null,null,null,null,null,null,null,null,"NAICS",{"$f":"IF(#REF!=\"324110\",1,0)","v":{"$error":"#REF!"}}]
[null,null,null,null,null,null,null,null,null,null,null,null,null,null,null,null,"Product",{"$f":"(COUNTIF('Section B'!D38:D56,\"Refining\"))+(COUNTIF('Section B'!D38:D56,\"Upgrading\"))","v":0}]

{"sheet":"SoC","index":4,"n_rows":32,"n_cols":11,"rows_kept":32,"cut":false,"hidden":false,"merged":[[27,8,27,10],[15,0,16,2],[7,6,7,9],[29,1,29,4],[32,2,32,10],[24,2,24,3],[24,4,24,10],[25,1,25,10],[31,1,31,4],[31,6,31,8],[29,6,29,8],[27,1,27,6],[0,0,0,11],[1,0,1,11],[5,1,5,4],[5,6,5,8],[7,1,7,4]]}
[]
["Statement of Certification"]
[]
[null,"Associated TIER Submission"]
[null,"Facility Name",null,null,null,null,"EPEA Approval Number(s)",null,null,null,"Facility ID"]
[null,{"$f":"'Section A1'!B5","v":0},null,null,null,null,{"$f":"'Section A1'!B7","v":0},null,null," ",{"$f":"'Section A1'!D5","v":0}]
[null,"Reporting Company Legal Name",null,null,null,null,"Year Forecasted"]
[null,{"$f":"'Section A2'!B5","v":0},null,null,null,null,{"$f":"QYear","v":2025}]
[]
[null,"Summary of Forecasted Emissions, Allocations and Compliance Data"]
[]
[null,null,null,null,{"$f":"QYear","v":2025}]
[]
[null,null,"Total Regulated Emissions (TRE)",null,{"$f":"'Section B'!F11","v":0}," Tonnes CO2e"]
[]
["Projected Contribution to the Technology Innovation and Emissions Reduction Fund",null,null,null,{"$f":"IF('Section B'!F23>0,IF('Section B'!F29=0,\"\",'Section B'!F29),0)","v":0},"%"]
[null,null,null,null,{"$f":"IF('Section B'!F23>0,IF('Section B'!F29=0,\"WARNING: Please fill the projected fund ratio in Section B\",\"\"),\"\")","v":""}]
[]
[null,null,"Allowable Emissions (AE)",null,{"$f":"'Section B'!F21","v":0}," Tonnes CO2e"]
[]
[null,null,{"$f":"\"Projected True-up Obligations\"","v":"Projected True-up Obligations"},null,{"$f":"'Section B'!F23","v":0},"Credits"]
[]
[null,"Signature of Certifying Official"]
[]
[null,"I ,",{"$f":"'Section A2'!B33&\" \"&'Section A2'!D33","v":" "},null,"(Certifying Official), having the authority to bind the reporting company, hereby certify that I have "]
[null,"reviewed the information being submitted, that I have exercised due diligence to ensure that the information is reasonable and complete, and that, to the best of my knowledge, the quantities submitted herein are based on reasonable estimates using available data."]
[null,"Signature of Certifying Official",null,null,null,null,null,null,"Date"]
[]
[null,"First Name",null,null,null,null,"Last Name"]
[null,{"$f":"'Section A2'!B33","v":0},null,null,null,null,{"$f":"'Section A2'!D33","v":0}]
[null,"Position/Title",null,null,null,null,"E-mail Address",null,null,null,"Phone Number"]
[null,{"$f":"'Section A2'!B35","v":0},null,null,null,null,{"$f":"'Section A2'!D35","v":0},null,null,null,{"$f":"'Section A2'!B37","v":0}]